[Event "FIDE Womens Candidates Pool-B 2022-23"]
[Site "Khiva"]
[Date "2022.12.02"]
[Round "1.3"]
[White "Tan, Zhongyi"]
[Black "Lagno, Kateryna"]
[Result "1/2-1/2"]
[ECO "D39"]
[WhiteElo "2514"]
[BlackElo "2563"]
[Annotator "TA"]
[PlyCount "96"]
[EventDate "2022.11.28"]
[EventType "k.o."]
[EventCountry "UZB"]
[SourceTitle "playchess.com"]
[Source "ChessBase"]
[SourceQuality "1"]
[TimeControl "40/5400+30:1800+30"]

{[%evp 15,96,24,25,14,29,29,39,31,35,30,48,56,47,25,27,28,24,29,33,31,33,0,10,0,0,0,0,-4,0,0,0,-15,0,-97,-109,-104,-104,-127,-127,-127,-128,-155,-155,-197,-165,-186,-113,-113,-113,-143,-141,-132,-62,-147,-62,-62,-62,-62,-62,-161,-62,-62,-12,-41,0,-8,0,0,0,0,0,0,0,0,0,0,0,0,0,0,0,0,0]} 1. d4 {[%emt 0:00:10]} d5 {[%emt 0:00:09]} 2. c4 {[%emt 0:00:07]} e6 {[%emt 0:00:12]} 3. Nf3 {[%emt 0:00:36]} Nf6 {[%emt 0:00:18]} 4. Nc3 {[%emt 0:00:12]} dxc4 {[%emt 0:00:20]} 5. e4 {[%emt 0:00:29]} Bb4 {[%emt 0:00:18]} 6. Bg5 {[%emt 0:01:19]} h6 {[%emt 0:00:41]} 7. Bxf6 {[%emt 0:01:14]} Qxf6 {[%emt 0:00:05]} 8. Bxc4 {[%emt 0:00:19]} c5 {[%emt 0:00:49]} (8... O-O {simplifies} 9. e5 Qe7 10. O-O Bxc3 11. bxc3 c5) 9. O-O {[%emt 0:02:29] D39: Queen's Gambit Declined: Ragozin Defence with 5 Bg5 dxc4.} cxd4 {[%emt 0:04:15]} 10. Nb5 {[%emt 0:00:48] Nc7+ is the strong threat.} Qd8 {[%emt 0:23:11] Inhibits Nc7+.} 11. Qa4 {[%emt 0:23:17] White is slightly better.} Nc6 {[%emt 0:00:26]} 12. Nbxd4 {[%emt 0:00:29]} Qa5 {[%emt 0:06:12]} 13. Bb5 {[%emt 0:00:24] [#]} (13. Qxa5 {simplifies} Bxa5 14. Bb5 Bd7 15. Bxc6 bxc6 16. Rac1) 13... Bd7 $146 {[%emt 0:01:34]} ({Predecessor:} 13... Qxa4 14. Bxa4 Bd7 15. Nxc6 Bxc6 16. Bxc6+ bxc6 17. Rac1 Rc8 18. Rc4 Bd6 19. Rfc1 Kd7 {1-0 (52) Johansson,G (2212)-Ytterberg,F (1864) Gothenburg 2018}) 14. Rfd1 {[%emt 0:00:19]} Qxa4 {[%emt 0:15:52]} 15. Bxa4 {[%emt 0:00:26]} Nb8 {[%emt 0:09:30][%cal Bc6b8,Bb8d7,Bd7f6][%mdl 32]} 16. Bxd7+ {[%emt 0:12:11]} Nxd7 {[%emt 0:00:03]} 17. Rac1 {[%emt 0:00:08]} Nf6 {[%emt 0:03:43]} 18. Nb3 {[%emt 0:18:58]} O-O {[%emt 0:04:36]} 19. Rd4 {[%emt 0:00:39]} Be7 {[%emt 0:01:15]} 20. a4 {[%emt 0:13:40]} Rac8 {[%emt 0:01:13]} 21. Rdc4 {[%emt 0:00:34]} Rxc4 {[%emt 0:00:54]} 22. Rxc4 {[%emt 0:00:06]} Rd8 {[%emt 0:00:14] ( -> ...Rd1+)} 23. Nfd2 {[%emt 0:02:20]} Nd7 {[%emt 0:05:11]} 24. Rc7 {[%emt 0:03:02] [#]} (24. Kf1 $11) 24... Nc5 $1 $17 {[%emt 0:01:35]} 25. Nxc5 {[%emt 0:09:03]} Rxd2 {[%emt 0:01:01][%cal Rd2d1]} 26. f3 {[%emt 0:00:18]} Bxc5+ {[%emt 0:09:47]} 27. Rxc5 {[%emt 0:00:12]} Rxb2 {[%emt 0:00:04][%mdl 4096] Endgame KR-KR} 28. h4 {[%emt 0:00:06] [#]} g6 $1 {[%emt 0:01:50]} 29. Kh2 {[%emt 0:00:43]} Kg7 {[%emt 0:01:52]} 30. Kg3 {[%emt 0:00:08]} Rb4 {[%emt 0:04:08]} (30... b6 $19 31. Rc7 a5) 31. a5 {[%emt 0:00:32]} b6 {[%emt 0:01:28]} 32. axb6 {[%emt 0:00:10]} axb6 {[%emt 0:00:04]} ({Not} 32... Rxb6 33. Ra5 $15) 33. Rc7 {[%emt 0:00:24]} e5 {[%emt 0:01:06]} ({Better is} 33... b5 $17 34. Kf4 Kf6) 34. Rb7 {[%emt 0:07:59] [#]} (34. h5 $15) 34... Kf6 {[%emt 0:00:25]} (34... h5 $1 $17 35. Re7 Kf6) 35. h5 $1 $15 {[%emt 0:02:39]} gxh5 {[%emt 0:01:14]} 36. Kh4 {[%emt 0:00:05]} Kg6 {[%emt 0:01:07] Strongly threatening ...Rb1.} 37. Rb8 {[%emt 0:00:48]} (37. Re7 $1 $15) 37... Rb1 {[%emt 0:01:00]} ({Black should try} 37... f5 $19 38. Rg8+ Kf7) 38. Rg8+ $1 {[%emt 0:00:11]} Kf6 {[%emt 0:01:02]} (38... Kh7 $15 39. Rb8 Rb2 40. Kxh5 Rxg2 41. Rxb6 Kg7) 39. Kxh5 $11 {[%emt 0:00:51][%cal Oh5g4]} b5 {[%emt 0:00:12]} 40. Rb8 {[%emt 0:00:47] The position is equal.} Rh1+ {[%emt 0:00:45]} 41. Kg4 {[%emt 0:30:08]} h5+ {[%emt 0:30:26]} 42. Kg3 {[%emt 0:00:21]} Rb1 {[%emt 0:00:33]} 43. Kh4 $1 {[%emt 0:00:53]} Kg6 {[%emt 0:00:00]} 44. Rg8+ {[%emt 0:00:00]} Kh6 {[%emt 0:00:00]} 45. Rh8+ {[%emt 0:00:00]} Kg7 {[%emt 0:00:00]} 46. Rb8 {[%emt 0:00:00]} Kg6 {[%emt 0:00:00]} 47. Rg8+ {[%emt 0:00:00]} Kh6 {[%emt 0:00:00]} 48. Rh8+ {[%emt 0:00:00]} Kg6 {[%emt 0:00:00] Black had all chances to win.   Weighted Error Value: White=0.14 (very precise) /Black=0.14 (very precise)} 1/2-1/2

[Event "FIDE Womens Candidates Pool-B 2022-23"]
[Site "Khiva"]
[Date "2022.12.04"]
[Round "1.5"]
[White "Tan, Zhongyi"]
[Black "Lagno, Kateryna"]
[Result "1-0"]
[ECO "D23"]
[WhiteElo "2514"]
[BlackElo "2563"]
[Annotator "TA"]
[PlyCount "77"]
[EventDate "2022.11.28"]
[EventType "k.o."]
[EventCountry "UZB"]
[SourceTitle "playchess.com"]
[Source "ChessBase"]
[SourceQuality "1"]
[TimeControl "900+10"]

{[%evp 9,77,-7,20,16,31,27,32,22,18,14,54,26,22,6,22,1,9,14,8,-18,0,0,0,-2,22,22,32,33,47,0,18,12,61,19,145,145,135,75,168,198,168,175,208,189,189,193,180,177,160,146,366,356,318,197,204,121,475,465,415,153,627,780,966,955,1402,1398,29991,29987,29982,29983]} 1. d4 {[%emt 0:00:03]} d5 {[%emt 0:00:01]} 2. c4 {[%emt 0:00:02]} e6 {[%emt 0:00:02]} 3. Nf3 {[%emt 0:00:03]} Nf6 {[%emt 0:00:03]} 4. Nc3 {[%emt 0:00:02]} dxc4 {[%emt 0:00:02]} 5. Qa4+ {[%emt 0:00:02]} Nc6 {[%emt 0:00:15]} 6. a3 {[%emt 0:00:01] D23: Queen's Gambit Accepted: 3 Nf3 Nf6 sidelines.} Bd7 {[%emt 0:01:17][%cal Oc6d4]} 7. Qxc4 {[%emt 0:00:10]} Bd6 {[%emt 0:01:16]} 8. Bg5 {[%emt 0:00:06] [#] White is slightly better.} h6 $146 {[%emt 0:00:24]} ({Predecessor:} 8... O-O 9. e3 e5 10. d5 Ne7 11. Bxf6 gxf6 12. Ne4 Ng6 13. Nfd2 Be7 14. g4 b5 {½-½ (24) Dreev,A (2655)-Smirnov,P (2623) Ramenskoe 2006}) 9. Bh4 {[%emt 0:00:13]} O-O {[%emt 0:01:39]} 10. e4 {[%emt 0:00:57]} e5 $1 {[%emt 0:01:46]} 11. d5 $1 {[%emt 0:00:02]} Na5 {[%emt 0:01:56]} 12. Qd3 {[%emt 0:00:03]} (12. Qa2 $5 {[%cal Rh4f6]}) 12... Nb3 {[%emt 0:00:27]} 13. Rd1 {[%emt 0:00:02]} a5 {[%emt 0:00:14]} 14. Be2 {[%emt 0:00:18]} (14. Qc2 $5 {[%cal Rc2b3]} a4 15. Bc4 $11) 14... Qe7 {[%emt 0:00:22]} (14... Rb8 $5 {[%cal Rb7b5]}) 15. O-O {[%emt 0:00:04]} a4 {[%emt 0:01:03]} 16. h3 {[%emt 0:01:54]} Ra5 {[%emt 0:00:16]} 17. Nd2 {[%emt 0:00:17]} Nd4 {[%emt 0:00:42]} 18. Nc4 {[%emt 0:00:29]} Rc5 {[%emt 0:00:01]} 19. f4 {[%emt 0:00:32] Against g5} (19. Nxd6 $14 cxd6 20. f4) 19... Nxe2+ {[%emt 0:01:11]} 20. Qxe2 {[%emt 0:00:04]} exf4 {[%emt 0:01:15]} (20... Rxc4 $1 $11 {feels stronger.} 21. Qxc4 exf4) 21. Bxf6 {[%emt 0:01:45]} (21. Nxd6 {is interesting.} cxd6 22. Rxf4 g5 23. e5) 21... gxf6 {[%emt 0:00:50]} (21... Qxf6 $11 22. e5 Qg6) 22. Nxd6 $16 {[%emt 0:00:02]} Qxd6 {[%emt 0:00:18]} 23. Qh5 {[%emt 0:00:03]} (23. Qd2 $142) 23... Qe5 {[%emt 0:00:24]} (23... Kh7 $16 {might work better.}) 24. Qh4 $18 {[%emt 0:02:34]} ({Much less strong is} 24. Qxh6 Qg5 25. Qxg5+ fxg5 $16) 24... Qg5 {[%emt 0:00:04]} 25. Qxf4 {[%emt 0:00:23]} Kg7 {[%emt 0:00:06]} 26. Qf2 {[%emt 0:00:13]} Rc4 {[%emt 0:00:11]} 27. Rd3 {[%emt 0:00:02]} Qe5 {[%emt 0:00:21]} 28. Kh1 {[%emt 0:01:35][%cal Od5d6] Prevents f5. Strongly threatening d6!} f5 {[%emt 0:00:52]} 29. exf5 {[%emt 0:00:29] Re3 is the strong threat.} Qf6 $2 {[%emt 0:00:19]} (29... Re8 $16 {keeps fighting.} 30. f6+ Kh8) 30. d6 {[%emt 0:00:54]} Bc6 {[%emt 0:01:42]} 31. dxc7 {[%emt 0:00:04] Black must now prevent Rfd1.} Kh7 {[%emt 0:00:04] [#]} 32. Rfd1 {[%emt 0:00:52]} (32. Nd1 $1 $18 {[%cal Rd1e3]}) 32... Rg8 $2 {[%emt 0:00:39][%mdl 8192] [#]} (32... Rc8 $16 33. Rd6 Qg5) 33. Rg3 $1 {[%emt 0:00:58] aiming for Rxg8.} Rc8 {[%emt 0:00:03]} 34. Qe2 $2 {[%emt 0:00:44]} (34. Rd8 $18 {and the rest is easy.} Rxc7 35. Qd2) 34... Rh4 $2 {[%emt 0:00:08]} (34... Rxc7 $16 35. Kh2 (35. Qxc4 $2 {too greedy.} Bxg2+ 36. Rxg2 Rxc4 $19) 35... Rf4) 35. Nd5 {[%emt 0:00:45]} Bxd5 {[%emt 0:00:15]} 36. Rxd5 {[%emt 0:00:03]} Rxc7 {[%emt 0:00:03]} 37. Qe8 {[%emt 0:00:38][%csl Gg3][%cal Re8g8]} h5 {[%emt 0:00:29]} 38. Rd8 {[%emt 0:00:37]} Rc1+ {[%emt 0:00:15]} 39. Kh2 {[%emt 0:00:02] Weighted Error Value: White=0.25 (precise) /Black=0.61} 1-0

[Event "FIDE Womens Candidates Pool-B 2022-23"]
[Site "Khiva"]
[Date "2022.12.04"]
[Round "1.6"]
[White "Lagno, Kateryna"]
[Black "Tan, Zhongyi"]
[Result "1/2-1/2"]
[ECO "B31"]
[WhiteElo "2563"]
[BlackElo "2514"]
[Annotator "TA"]
[PlyCount "86"]
[EventDate "2022.11.28"]
[EventType "k.o."]
[EventCountry "UZB"]
[SourceTitle "playchess.com"]
[Source "ChessBase"]
[SourceQuality "1"]
[TimeControl "900+10"]

{[%evp 9,86,9,32,17,43,-9,-2,-12,22,22,29,33,16,17,20,21,22,11,31,0,0,0,0,0,0,0,-2,-6,0,-10,-16,-5,-15,-15,-12,-7,-8,-19,0,0,0,0,0,-3,0,0,0,0,0,-25,0,0,0,0,0,0,0,0,0,0,0,0,0,0,0,0,0,0,0,0,0,0,0,0,0,0,0,0,0]} 1. e4 {[%emt 0:00:01]} c5 {[%emt 0:00:01]} 2. Nf3 {[%emt 0:00:02]} Nc6 {[%emt 0:00:01]} 3. Bb5 {[%emt 0:00:06]} g6 {[%emt 0:00:02]} 4. O-O {[%emt 0:00:04]} Bg7 {[%emt 0:00:02]} 5. d3 {[%emt 0:00:02]} d6 {[%emt 0:00:24]} 6. c3 {[%emt 0:00:07] B31: Sicilian: 2...Nc6 3 Bb5 g6.} Nf6 {[%emt 0:00:45]} 7. d4 {[%emt 0:00:16]} (7. e5 $14 dxe5 8. Nxe5) 7... O-O $11 {[%emt 0:00:35]} 8. d5 {[%emt 0:01:07]} Nb8 {[%emt 0:00:12]} 9. Re1 {[%emt 0:00:02]} e6 {[%emt 0:00:34] [#]} 10. h3 $146 {[%emt 0:02:09]} ({Predecessor:} 10. dxe6 Bxe6 11. Na3 h6 12. Bf4 d5 13. exd5 Nxd5 14. Bg3 Nc6 15. Bxc6 bxc6 16. Ne5 {½-½ (77) Torre,E (2535)-Gelfand,B (2665) Yerevan 1996}) 10... exd5 {[%emt 0:00:46]} 11. exd5 {[%emt 0:00:02]} a6 {[%emt 0:00:03]} 12. Bf1 {[%emt 0:00:03]} b5 {[%emt 0:00:01]} 13. a4 {[%emt 0:00:21]} Bb7 {[%emt 0:00:03]} (13... b4 {simplifies} 14. cxb4 cxb4 15. Nbd2 Bb7) 14. Bg5 {[%emt 0:00:39]} Nbd7 {[%emt 0:00:37]} 15. axb5 {[%emt 0:02:26]} axb5 {[%emt 0:00:02]} 16. Rxa8 {[%emt 0:00:01]} Qxa8 {[%emt 0:00:05]} 17. Bxb5 {[%emt 0:01:35]} Bxd5 {[%emt 0:00:03]} 18. Nbd2 {[%emt 0:00:09]} Rb8 {[%emt 0:02:07]} 19. Qe2 {[%emt 0:02:00]} Bc6 {[%emt 0:01:20]} 20. Bxc6 {[%emt 0:00:55]} Qxc6 {[%emt 0:00:01]} 21. Nc4 {[%emt 0:01:30]} Re8 {[%emt 0:00:32]} 22. Qd1 {[%emt 0:00:01]} Rxe1+ {[%emt 0:00:02]} 23. Qxe1 {[%emt 0:00:01]} d5 {[%emt 0:00:16]} 24. Nce5 {[%emt 0:00:35]} Nxe5 {[%emt 0:00:03]} 25. Qxe5 {[%emt 0:00:09]} h6 {[%emt 0:00:08]} 26. Qb8+ {[%emt 0:00:22]} Kh7 {[%emt 0:00:17]} (26... Qe8 {simplifies} 27. Qxe8+ Nxe8 28. Be3 c4) 27. Bf4 {[%emt 0:00:14]} Ne4 {[%emt 0:00:57]} 28. Be5 {[%emt 0:00:23]} f6 {[%emt 0:00:22]} 29. Bc7 {[%emt 0:00:45]} Qa4 {[%emt 0:00:19]} (29... d4 $5 {[%cal Rd4c3]}) 30. Bg3 {[%emt 0:00:46] The position is equal.} d4 {[%emt 0:00:44]} 31. cxd4 $1 {[%emt 0:00:15]} cxd4 {[%emt 0:00:02]} 32. Qd8 {[%emt 0:00:58]} Qd1+ {[%emt 0:00:03]} 33. Kh2 {[%emt 0:00:01]} d3 {[%emt 0:00:02]} 34. Qd5 {[%emt 0:00:24]} Nd2 {[%emt 0:01:48]} 35. Nxd2 {[%emt 0:00:39]} Qxd2 {[%emt 0:00:01][%mdl 4096] Endgame KQB-KQB} 36. b4 {[%emt 0:00:12]} Qc2 {[%emt 0:00:22] [#] And now ...d2 would win.} 37. b5 $1 {[%emt 0:00:22]} d2 {[%emt 0:04:11]} 38. b6 {[%emt 0:00:01]} d1=Q {[%emt 0:00:15]} (38... d1=B $2 39. b7 Qb3 40. Qd7 $18 (40. b8=R $2 {too greedy.} Qxd5 41. Rb6 Ba4 $19)) 39. Qxd1 {[%emt 0:00:02]} Qxd1 {[%emt 0:00:02]} 40. b7 {[%emt 0:00:01]} Qb3 {[%emt 0:00:09]} 41. b8=Q {[%emt 0:00:03]} Qxb8 {[%emt 0:00:02]} 42. Bxb8 {[%emt 0:00:01]} g5 {[%emt 0:00:02]} 43. g4 {[%emt 0:00:02]} Kg6 {[%emt 0:00:02] An even fight not without its subleties.   Weighted Error Value: White=0.05 (flawless) /Black=0.04 (flawless)} 1/2-1/2

[Event "FIDE Womens Candidates Pool-B 2022-23"]
[Site "Khiva"]
[Date "2022.12.05"]
[Round "1.7"]
[White "Tan, Zhongyi"]
[Black "Lagno, Kateryna"]
[Result "1/2-1/2"]
[ECO "D23"]
[WhiteElo "2514"]
[BlackElo "2563"]
[Annotator "TA"]
[PlyCount "137"]
[EventDate "2022.11.28"]
[EventType "k.o."]
[EventCountry "UZB"]
[SourceTitle "playchess.com"]
[Source "ChessBase"]
[SourceQuality "1"]
[TimeControl "900+10"]

{[%evp 9,137,4,27,21,33,0,1,0,0,0,1,0,0,-7,6,-40,-48,-94,-77,-106,-94,-318,-316,-347,-347,-342,-346,-359,-340,-326,-320,-422,-439,-431,-423,-416,-409,-406,-116,-115,54,68,84,83,159,164,152,40,65,71,79,0,0,0,0,0,0,0,0,0,0,0,0,0,0,0,0,0,0,0,0,0,0,0,0,0,0,0,0,0,11,11,13,0,0,0,0,0,0,0,0,0,0,0,0,0,0,0,0,0,12,12,18,18,18,18,18,12,12,0,11,0,11,0,12,11,11,0,0,0,0,0,0,0,0,0,0,0,0,0]} 1. d4 {[%emt 0:00:03]} d5 {[%emt 0:00:01][%cal Bd7d5,Bd5c4][%mdl 32]} 2. c4 {[%emt 0:00:02]} e6 {[%emt 0:00:01]} 3. Nf3 {[%emt 0:00:02]} Nf6 {[%emt 0:00:02]} 4. Nc3 {[%emt 0:00:02]} dxc4 {[%emt 0:00:03]} 5. Qa4+ {[%emt 0:00:02]} Nc6 {[%emt 0:00:03][%cal Bb8c6,Bc6e5,Be5g6,Bg6f4][%mdl 32]} 6. a3 {[%emt 0:00:01] Prevents Bb4. D23: Queen's Gambit Accepted: 3 Nf3 Nf6 sidelines.} Bd6 {[%emt 0:00:18] [#]} 7. g3 $146 {[%emt 0:00:03]} ({Predecessor:} 7. e4 Be7 8. Bxc4 O-O 9. Be2 a6 10. O-O Rb8 11. Rd1 b5 12. Qc2 Bb7 13. Be3 {1-0 (116) Mozharov,M (2558)-Sadhwani,R (2479) Chess.com INT 2019}) 7... O-O {[%emt 0:00:18]} 8. Bg2 {[%emt 0:00:02]} e5 {[%emt 0:00:12]} 9. Qxc4 {[%emt 0:00:04]} exd4 {[%emt 0:00:25]} 10. Nxd4 {[%emt 0:00:03]} Ne5 {[%emt 0:00:25]} 11. Qa4 {[%emt 0:00:17]} Bc5 {[%emt 0:01:39]} 12. Be3 {[%emt 0:03:54]} (12. Nf3 $11 {is more appropriate.} Nxf3+ 13. Bxf3) 12... Bd7 $15 {[%emt 0:01:09]} 13. Qd1 {[%emt 0:00:03]} (13. Qc2 $15) 13... Nfg4 $17 {[%emt 0:02:45]} 14. Bf4 {[%emt 0:03:46]} Ng6 $1 {[%emt 0:00:59]} 15. e3 {[%emt 0:02:13]} (15. Bxb7 $2 Nxf4 $1 16. gxf4 Qh4 $1 $19) (15. O-O $17 {is a better defense.}) 15... Nxf4 $19 {[%emt 0:00:14]} 16. gxf4 {[%emt 0:00:01]} Qh4 {[%emt 0:00:18][%csl Gg4,LRe3,LRf2,LRh2][%cal Rh4f2]} 17. Qd2 {[%emt 0:01:18]} Bxd4 {[%emt 0:00:03]} (17... Nxh2 18. O-O-O $16 (18. Bxb7 Bg4 $17)) 18. exd4 {[%emt 0:00:01]} Rfe8+ {[%emt 0:00:14]} (18... Nxh2 19. O-O-O $18) 19. Kf1 {[%emt 0:00:09]} Bf5 {[%emt 0:00:26][%cal Of5d3] Hoping for ...Bd3+!} (19... Nxh2+ 20. Kg1 $18) 20. Re1 {[%emt 0:01:33] [#]} Bd3+ {[%emt 0:00:41][%mdl 512]} 21. Kg1 {[%emt 0:00:02][%cal Og2b7] [#]} Nxf2 $1 {[%emt 0:00:16][%mdl 512]} 22. Re3 {[%emt 0:01:30]} (22. Rxe8+ Rxe8 23. Qxf2 Re1+) 22... Rxe3 {[%emt 0:01:20]} (22... Nxh1 $2 23. Rxd3 Re1+ 24. Bf1 $17) 23. Qxe3 {[%emt 0:00:07]} Ng4 {[%emt 0:00:11]} (23... Nxh1 $19 {is more deadly.} 24. Bxb7 Rb8 25. Bxh1 Bc4) 24. Qg3 $17 {[%emt 0:00:12]} Qf6 {[%emt 0:05:18]} (24... Qxg3 $17 25. hxg3 Nf6) 25. Qxd3 $14 {[%emt 0:00:04] aiming for h3.} Qxf4 {[%emt 0:00:01][%csl Gg4][%cal Rf4f2] [#]} 26. Bf3 $1 {[%emt 0:00:07]} (26. Bxb7 $2 Qf2#) (26. Nd1 $2 Re8 27. Qf1 Qd2 $19) 26... Re8 {[%emt 0:00:22]} (26... Qc1+ $142 27. Nd1 Nf6) 27. Ne2 $16 {[%emt 0:00:09]} (27. Bxb7 $2 Qf2#) 27... Qg5 {[%emt 0:00:27]} 28. Bxg4 {[%emt 0:00:11]} (28. Bxb7 Re3 29. Qd1 {[#]} Rf3 $3 $19 {[%mdl 512]}) (28. h4 $16 Ne5+ 29. hxg5 Nxd3 30. Nc3) 28... Qxg4+ {[%emt 0:00:02]} 29. Kf2 {[%emt 0:00:15]} ({Reject} 29. Ng3 h5 30. h3 Qg5 $11) 29... Qh4+ {[%emt 0:00:32]} 30. Kg2 {[%emt 0:01:01]} (30. Qg3 $16 Qf6+ 31. Qf3) 30... Qg5+ $11 {[%emt 0:00:20] The position is equal.} 31. Ng3 {[%emt 0:00:53]} Re3 {[%emt 0:00:08]} 32. Qc4 {[%emt 0:00:06]} b5 {[%emt 0:00:41]} 33. Qc6 {[%emt 0:00:56] Threatening mate with Qa8+.} h5 $1 {[%emt 0:00:15]} 34. Rf1 {[%emt 0:01:01]} (34. Qxc7 Qd5+ 35. Kg1 Qxd4 36. Qc8+ Re8+ 37. Kf1 Rxc8 38. Ne2 Qd2 39. Kf2 Rc5 40. Re1 Rf5+ 41. Kg2 Qxe1 42. Ng3 Qf2+ 43. Kh1 Rd5 44. h4 Rd1+) 34... h4 {[%emt 0:00:08][%mdl 64] Pin} 35. Qxc7 {[%emt 0:00:20]} ({Don't go for} 35. Kh1 $2 hxg3 36. Qb7 Kh7 $19) 35... hxg3 {[%emt 0:00:16]} 36. Qxf7+ {[%emt 0:00:15][%mdl 4096] Endgame KQR-KQR} Kh7 {[%emt 0:00:06]} 37. Qf5+ {[%emt 0:00:17]} Qxf5 {[%emt 0:00:03]} 38. Rxf5 {[%emt 0:00:01]} gxh2 {[%emt 0:00:08] And now ...Re2+ would win.} 39. Rxb5 {[%emt 0:00:17] KR-KR} Re2+ {[%emt 0:00:05]} 40. Kh1 {[%emt 0:00:02]} Kh6 {[%emt 0:00:29]} 41. d5 {[%emt 0:00:10]} g5 {[%emt 0:00:07][%cal Bg7g5,Bg5g4,Bg4g3][%mdl 32] Threatens to win with ...g4.} 42. d6 {[%emt 0:00:04]} g4 {[%emt 0:00:10]} 43. Rd5 {[%emt 0:00:27] Against g3} g3 $1 {[%emt 0:00:18] ( -> ...Re1+)} 44. Rd1 {[%emt 0:00:01] Against Re1+. White threatens d7 and mate.} Re8 $1 {[%emt 0:00:15]} 45. Kg2 {[%emt 0:00:04]} Rg8 {[%emt 0:00:10]} 46. d7 {[%emt 0:00:02] Dancing on a razor blade.} Rd8 {[%emt 0:00:05]} 47. Kxg3 {[%emt 0:00:02]} Rxd7 $1 {[%emt 0:00:04][%mdl 64]} 48. Rh1 {[%emt 0:00:14]} Rd3+ {[%emt 0:00:16]} 49. Kxh2 {[%emt 0:00:03]} Kg5 {[%emt 0:00:01]} 50. Rg1+ {[%emt 0:00:15]} Kf4 {[%emt 0:00:02]} 51. Rg2 {[%emt 0:00:01]} a5 {[%emt 0:00:11]} 52. Kg1 {[%emt 0:00:02]} Rd1+ {[%emt 0:00:20]} 53. Kf2 {[%emt 0:00:46]} Rd2+ {[%emt 0:00:04]} 54. Kf1 {[%emt 0:00:02]} Rd5 {[%emt 0:00:24]} 55. Ke2 {[%emt 0:00:13]} Kf5 {[%emt 0:00:08]} 56. Ke3 {[%emt 0:00:03]} Ke6 {[%emt 0:00:09]} 57. Ke4 {[%emt 0:00:06] Intending Rg6+ and mate.} Rb5 {[%emt 0:00:15]} 58. Rd2 {[%emt 0:00:02]} a4 {[%emt 0:00:09]} 59. Ke3 {[%emt 0:00:01]} Ke5 {[%emt 0:00:04]} 60. Ke2 {[%emt 0:00:01]} Ke4 {[%emt 0:00:05]} 61. Kd1 {[%emt 0:00:01]} Ke5 {[%emt 0:00:12]} 62. Kc1 {[%emt 0:00:04]} Rc5+ {[%emt 0:00:05]} 63. Rc2 {[%emt 0:00:02]} Kd4 {[%emt 0:00:19]} 64. Kd1 {[%emt 0:00:52]} Rxc2 {[%emt 0:00:13]} 65. Kxc2 {[%emt 0:00:01]} Kc4 {[%emt 0:00:01]} 66. Kc1 {[%emt 0:00:02]} Kb3 {[%emt 0:00:11]} 67. Kb1 {[%emt 0:00:02]} Kc4 {[%emt 0:00:01]} 68. Kc2 {[%emt 0:00:02]} Kd4 {[%emt 0:00:01]} 69. Kd2 {[%emt 0:00:06] Weighted Error Value: White=0.17 (very precise) /Black=0.14 (very precise)} 1/2-1/2